bitfinex-derivatives/quotes_BTCF0:USTF0_20251220
["timestamp","ask_amount","ask_price","bid_price","bid_amount"]
[1766267144920,0.0396447,88342.0,88323.0,0.02828]
[1766267145122,0.02537486,88341.0,88323.0,0.02828]
[1766267145322,0.02537486,88340.0,88323.0,0.02828]
[1766267145517,0.02537486,88339.0,88323.0,0.02828]
[1766267145718,0.0396447,88342.0,88323.0,0.02828]
[1766267145913,0.02537498,88341.0,88323.0,0.02828]
[1766267146112,0.02537498,88340.0,88323.0,0.02828]
[1766267146316,0.02537498,88339.0,88323.0,0.02828]
[1766267146624,0.0396447,88342.0,88323.0,0.02828]
[1766267146815,0.02537511,88341.0,88323.0,0.02828]
[1766267147016,0.02537511,88340.0,88323.0,0.02828]
[1766267147217,0.02537511,88339.0,88323.0,0.02828]
[1766267147518,0.0396447,88342.0,88323.0,0.02828]
[1766267147714,0.02537526,88341.0,88323.0,0.02828]
[1766267147914,0.02537526,88340.0,88323.0,0.02828]
[1766267148125,0.02537526,88339.0,88323.0,0.02828]
[1766267148325,0.0396447,88342.0,88323.0,0.02828]
[1766267148627,0.02537558,88341.0,88323.0,0.02828]
[1766267148922,0.02537558,88340.0,88323.0,0.02828]
[1766267149125,0.02537558,88339.0,88323.0,0.02828]
[1766267149326,0.0396447,88342.0,88323.0,0.02828]
[1766267149623,0.02537576,88341.0,88323.0,0.02828]
[1766267149827,0.02537576,88340.0,88323.0,0.02828]
[1766267150128,0.02537576,88339.0,88323.0,0.02828]
[1766267150328,0.0396447,88342.0,88323.0,0.02828]
[1766267150523,0.02537597,88341.0,88323.0,0.02828]
[1766267150724,0.02537597,88340.0,88323.0,0.02828]
[1766267150925,0.02537597,88339.0,88323.0,0.02828]
[1766267151125,0.0396447,88342.0,88323.0,0.02828]
[1766267151319,0.02537581,88341.0,88323.0,0.02828]
[1766267151529,0.02537581,88340.0,88323.0,0.02828]
[1766267151724,0.02537581,88339.0,88323.0,0.02828]
[1766267152028,0.0396447,88342.0,88323.0,0.02828]
[1766267152329,0.02537605,88341.0,88323.0,0.02828]
[1766267152524,0.02537605,88340.0,88323.0,0.02828]
[1766267152728,0.02537605,88339.0,88323.0,0.02828]
[1766267152930,0.0396447,88342.0,88323.0,0.02828]
[1766267153132,0.02537649,88341.0,88323.0,0.02828]
[1766267153320,0.02537649,88340.0,88323.0,0.02828]
[1766267153522,0.02537649,88339.0,88323.0,0.02828]
[1766267153723,0.0396447,88342.0,88323.0,0.02828]
[1766267153923,0.02537684,88341.0,88323.0,0.02828]
[1766267154123,0.02537684,88340.0,88323.0,0.02828]
[1766267154328,0.02537684,88339.0,88323.0,0.02828]
[1766267154532,0.0396447,88342.0,88323.0,0.02828]
[1766267154728,0.02537714,88341.0,88323.0,0.02828]
[1766267154933,0.02537714,88340.0,88323.0,0.02828]
[1766267155124,0.02537714,88339.0,88323.0,0.02828]
[1766267155325,0.0396447,88342.0,88323.0,0.02828]
[1766267155525,0.02537721,88341.0,88323.0,0.02828]
[1766267155828,0.02537721,88340.0,88323.0,0.02828]
[1766267156032,0.02537721,88339.0,88323.0,0.02828]
[1766267156232,0.0396447,88342.0,88323.0,0.02828]
[1766267156434,0.02537722,88341.0,88323.0,0.02828]
[1766267156634,0.02537722,88340.0,88323.0,0.02828]
[1766267156834,0.02537722,88339.0,88323.0,0.02828]
[1766267157135,0.0396447,88342.0,88323.0,0.02828]
[1766267157323,0.02537707,88341.0,88323.0,0.02828]
[1766267157526,0.02537707,88340.0,88323.0,0.02828]
[1766267157722,0.02537707,88339.0,88323.0,0.02828]
[1766267157923,0.0396447,88342.0,88323.0,0.02828]
[1766267158135,0.02537705,88341.0,88323.0,0.02828]
[1766267158336,0.02537705,88340.0,88323.0,0.02828]
[1766267158537,0.02537705,88339.0,88323.0,0.02828]
[1766267158736,0.0396447,88342.0,88323.0,0.02828]
[1766267158938,0.02537704,88341.0,88323.0,0.02828]
[1766267159133,0.02537704,88340.0,88323.0,0.02828]
[1766267159433,0.02537704,88339.0,88323.0,0.02828]
[1766267159634,0.0396447,88342.0,88324.0,0.011327]
[1766267159937,0.02537705,88341.0,88324.0,0.011327]
[1766267160139,0.02537705,88340.0,88324.0,0.011327]
[1766267160333,0.02537705,88339.0,88324.0,0.011327]
[1766267160534,0.0396447,88342.0,88324.0,0.011327]
[1766267160734,0.02537706,88341.0,88324.0,0.011327]
[1766267160937,0.02537706,88340.0,88324.0,0.011327]
[1766267161132,0.02537706,88339.0,88324.0,0.011327]
[1766267161334,0.02832,88342.0,88324.0,0.011327]
[1766267161532,0.02536886,88341.0,88324.0,0.011327]
[1766267161735,0.02536886,88340.0,88324.0,0.011327]
[1766267162039,0.02536886,88339.0,88324.0,0.011327]
[1766267162239,0.02832,88342.0,88324.0,0.011327]
[1766267162535,0.02536891,88341.0,88324.0,0.011327]
[1766267162742,0.02536891,88340.0,88324.0,0.011327]
[1766267162941,0.02536891,88339.0,88324.0,0.011327]
[1766267163243,0.02832,88342.0,88324.0,0.011327]
[1766267163543,0.02536903,88341.0,88324.0,0.011327]
[1766267163737,0.02536903,88340.0,88324.0,0.011327]
[1766267163938,0.02536903,88339.0,88324.0,0.011327]
[1766267164241,0.02832,88342.0,88324.0,0.011327]
[1766267164442,0.02536901,88341.0,88324.0,0.011327]
[1766267164741,0.02536901,88340.0,88324.0,0.011327]
[1766267164938,0.02536901,88339.0,88324.0,0.011327]
[1766267165137,0.02832,88342.0,88324.0,0.011327]
[1766267165338,0.02536901,88341.0,88324.0,0.011327]
[1766267165642,0.02536901,88340.0,88324.0,0.011327]
[1766267165841,0.02536901,88339.0,88324.0,0.011327]
[1766267166042,0.02832,88342.0,88324.0,0.011327]
[1766267166245,0.02536891,88341.0,88324.0,0.011327]
[1766267166541,0.02536891,88340.0,88323.0,0.02828]
[1766267166742,0.02536891,88339.0,88323.0,0.02828]
[1766267166943,0.02832,88342.0,88323.0,0.02828]
[1766267167243,0.02536888,88341.0,88323.0,0.02828]
[1766267167434,0.02536888,88340.0,88323.0,0.02828]
[1766267167635,0.02536888,88339.0,88323.0,0.02828]
[1766267167934,0.02832,88342.0,88323.0,0.02828]
[1766267168134,0.02536899,88341.0,88323.0,0.02828]
[1766267168338,0.02536899,88340.0,88323.0,0.02828]
[1766267168540,0.02536899,88339.0,88323.0,0.02828]
[1766267168742,0.02832,88342.0,88323.0,0.02828]
[1766267169040,0.02536904,88341.0,88323.0,0.02828]
[1766267169341,0.02536904,88340.0,88323.0,0.02828]
[1766267169640,0.02536904,88339.0,88323.0,0.02828]
[1766267169840,0.02832,88342.0,88323.0,0.02828]
[1766267170040,0.025369,88341.0,88323.0,0.0396071]
[1766267170340,0.025369,88340.0,88323.0,0.0396071]
[1766267170540,0.025369,88339.0,88323.0,0.0396071]
[1766267170844,0.02832,88342.0,88323.0,0.0396071]
[1766267171045,0.02536893,88341.0,88323.0,0.0396071]
[1766267171245,0.02536893,88340.0,88323.0,0.0396071]
[1766267171445,0.02536893,88339.0,88323.0,0.0396071]
[1766267171647,0.02832,88342.0,88323.0,0.0396071]
[1766267171944,0.02536893,88341.0,88323.0,0.0396071]
[1766267172145,0.02832,88342.0,88323.0,0.0396071]
[1766267172146,0.02536893,88340.0,88323.0,0.0396071]
[1766267172353,0.02536893,88339.0,88323.0,0.0396071]
[1766267172550,0.02832,88342.0,88323.0,0.0396071]
[1766267172849,0.02536893,88341.0,88323.0,0.0396071]
[1766267173050,0.02536893,88340.0,88323.0,0.0396071]
[1766267173249,0.02536893,88339.0,88323.0,0.0396071]
[1766267173452,0.02832,88342.0,88323.0,0.0396071]
[1766267173655,0.02536899,88341.0,88323.0,0.0396071]
[1766267173849,0.02536899,88340.0,88323.0,0.0396071]
[1766267174050,0.02536899,88339.0,88323.0,0.0396071]
[1766267174249,0.02832,88342.0,88323.0,0.0396071]
[1766267174451,0.02536893,88341.0,88323.0,0.0396071]
[1766267174645,0.02536893,88340.0,88323.0,0.0396071]
[1766267174850,0.02536893,88339.0,88323.0,0.0396071]
[1766267175055,0.02832,88342.0,88323.0,0.0396071]
[1766267175255,0.02536905,88341.0,88323.0,0.0396071]
[1766267175455,0.02536905,88340.0,88323.0,0.02828]
[1766267175655,0.02536905,88339.0,88323.0,0.02828]
[1766267175856,0.02832,88342.0,88323.0,0.02828]
[1766267176056,0.02536908,88341.0,88323.0,0.02828]
[1766267176357,0.02536908,88340.0,88323.0,0.02828]
[1766267176555,0.02536908,88339.0,88323.0,0.02828]
[1766267176754,0.02832,88342.0,88323.0,0.02828]
[1766267177057,0.02536909,88341.0,88323.0,0.02828]
[1766267177356,0.02536909,88340.0,88323.0,0.02828]
[1766267177548,0.02536909,88339.0,88323.0,0.02828]
[1766267177743,0.02832,88342.0,88323.0,0.02828]
[1766267178052,0.0253691,88341.0,88323.0,0.02828]
[1766267178249,0.0253691,88340.0,88323.0,0.02828]
[1766267178450,0.0253691,88339.0,88323.0,0.02828]
[1766267178654,0.02832,88342.0,88323.0,0.02828]
[1766267178950,0.02536905,88341.0,88323.0,0.02828]
[1766267179256,0.02536905,88340.0,88323.0,0.02828]
[1766267179445,0.02536905,88339.0,88323.0,0.02828]
[1766267179647,0.02832,88342.0,88323.0,0.02828]
[1766267179848,0.02536914,88341.0,88323.0,0.02828]
[1766267180158,0.02536914,88340.0,88323.0,0.02828]
[1766267180357,0.02536914,88339.0,88323.0,0.02828]
[1766267180559,0.02832,88342.0,88323.0,0.02828]
[1766267180857,0.02536926,88341.0,88323.0,0.02828]
[1766267181057,0.02536926,88340.0,88323.0,0.02828]
[1766267181258,0.02536926,88339.0,88323.0,0.02828]
[1766267181453,0.02832,88342.0,88323.0,0.02828]
[1766267181653,0.02536928,88341.0,88323.0,0.02828]
[1766267181857,0.02536928,88340.0,88323.0,0.02828]
[1766267182057,0.02536928,88339.0,88323.0,0.02828]
[1766267182257,0.02832,88342.0,88323.0,0.02828]
[1766267182552,0.02536932,88341.0,88323.0,0.02828]
[1766267182757,0.02536932,88340.0,88323.0,0.02828]
[1766267182961,0.02536932,88339.0,88323.0,0.02828]
[1766267183161,0.02832,88342.0,88323.0,0.02828]
[1766267183361,0.02536932,88341.0,88323.0,0.02828]
[1766267183562,0.02536932,88340.0,88323.0,0.02828]
[1766267183861,0.02536932,88339.0,88323.0,0.02828]
[1766267184064,0.02832,88342.0,88323.0,0.02828]
[1766267184257,0.02536948,88341.0,88323.0,0.02828]
[1766267184558,0.02536948,88340.0,88323.0,0.02828]
[1766267184758,0.02832,88342.0,88322.0,0.0113272]
[1766267184953,0.02832,88342.0,88313.0,4.39e-06]
[1766267184954,0.22805653,88332.0,88313.0,4.39e-06]
[1766267185160,0.0113267,88327.0,88313.0,4.39e-06]
[1766267185463,0.22805653,88332.0,88313.0,4.39e-06]
[1766267185659,0.22805653,88330.0,88313.0,4.39e-06]
[1766267185853,0.02535083,88329.0,88313.0,4.39e-06]
[1766267186059,0.02535083,88328.0,88313.0,1e-08]
[1766267186259,0.0113281,88316.0,88313.0,1e-08]
[1766267186460,0.0113281,88316.0,88314.0,0.02832]
[1766267186660,0.0113281,88316.0,88315.0,0.014]
[1766267187057,0.01143512,88316.0,88315.0,0.00692]
[1766267187361,0.01143512,88316.0,88315.0,0.00344]
[1766267187867,0.01143512,88316.0,88315.0,0.00172]
[1766267188061,0.01143512,88316.0,88315.0,0.00084]
[1766267188361,0.00010702,88316.0,88290.0,0.22805653]
[1766267188564,0.0113292,88307.0,88291.0,1.44456]
[1766267188754,0.00010702,88316.0,88292.0,0.02832]
[1766267188755,0.0113287,88311.0,88292.0,0.02832]
[1766267189163,0.00016982,88310.0,88293.0,0.00016982]
[1766267189565,0.011329,88309.0,88293.0,0.00016982]
[1766267189764,0.011329,88309.0,88294.0,1.44784]
[1766267190567,0.00016982,88310.0,88294.0,1.44784]
[1766267192564,0.0113289,88309.0,88294.0,1.44784]
[1766267193164,0.0113289,88309.0,88293.0,0.00016982]
[1766267193370,0.0113289,88309.0,88295.0,1.47296]
[1766267194674,0.0113289,88309.0,88296.0,1.47296]
[1766267194974,0.00016982,88310.0,88296.0,1.47296]
[1766267198376,0.00016982,88310.0,88293.0,0.00016982]
[1766267198576,0.00016982,88310.0,88294.0,1.47304]
[1766267198874,0.00016982,88310.0,88295.0,1.47304]
[1766267201176,0.00016982,88310.0,88293.0,0.00016982]
[1766267201381,0.00016982,88310.0,88296.0,1.47304]
[1766267202283,0.00016982,88310.0,88300.0,0.22819403]
[1766267202581,0.00016982,88310.0,88301.0,0.02832]
[1766267202776,0.00010702,88316.0,88301.0,0.02832]
[1766267207286,0.0113272,88323.0,88306.0,0.22819403]
[1766267207487,0.0113262,88331.0,88309.0,0.22819403]
[1766267207676,0.0113264,88329.0,88307.0,0.02832]
[1766267207987,0.0113264,88329.0,88310.0,0.22819403]
[1766267208288,0.0113264,88329.0,88311.0,0.01228]
[1766267208487,0.00016982,88328.0,88311.0,0.01244982]
[1766267210879,0.00016982,88328.0,88312.0,1.44476]
[1766267211288,0.22819403,88340.0,88312.0,1.44476]
[1766267211881,0.22819403,88330.0,88312.0,1.44476]
[1766267212381,0.0113265,88329.0,88312.0,1.44476]
[1766267218394,0.0113267,88326.0,88312.0,1.44476]
[1766267219686,0.02649342,88325.0,88312.0,1.44476]
[1766267219887,0.02649342,88324.0,88312.0,1.44476]
[1766267220086,0.02649342,88323.0,88312.0,1.44476]
[1766267220388,0.02649342,88322.0,88312.0,1.44476]
[1766267220590,0.0113267,88326.0,88312.0,1.44476]
[1766267220789,0.0264932,88325.0,88312.0,1.44476]
[1766267220990,0.0113267,88326.0,88312.0,1.44476]
[1766267221190,0.02680752,88325.0,88312.0,1.44476]
[1766267221398,0.02680752,88324.0,88312.0,1.44476]
[1766267221598,0.02680752,88323.0,88312.0,1.44476]
[1766267221897,0.02680752,88322.0,88312.0,1.44476]
[1766267222098,0.0113267,88326.0,88312.0,1.44476]
[1766267222297,0.02680744,88325.0,88312.0,1.44476]
[1766267222498,0.02680744,88324.0,88312.0,1.44476]
[1766267222697,0.02680744,88323.0,88312.0,1.44476]
[1766267222900,0.02680744,88322.0,88312.0,1.44476]
[1766267223092,0.0113267,88326.0,88312.0,1.44476]
[1766267223292,0.011327,88324.0,88312.0,1.44476]
[1766267223492,0.02680717,88323.0,88312.0,1.44476]
[1766267228612,0.011327,88324.0,88312.0,1.44476]
[1766267228797,0.0267603,88323.0,88312.0,1.44476]
[1766267229503,0.0113273,88322.0,88311.0,0.00016982]
[1766267229806,0.0267603,88321.0,88312.0,0.02832]
[1766267232902,0.0267603,88321.0,88311.0,0.00016982]
[1766267233100,0.0267603,88321.0,88312.0,0.02832]
[1766267237904,0.0267603,88320.0,88312.0,0.02832]
[1766267238106,0.22829787,88330.0,88311.0,0.00016982]
[1766267238305,0.02668059,88329.0,88312.0,0.02832]
[1766267238498,0.22829787,88330.0,88312.0,0.02832]
[1766267238499,0.02668059,88328.0,88312.0,0.02832]
[1766267238695,0.02668059,88327.0,88312.0,0.02832]
[1766267238903,0.02668059,88326.0,88312.0,0.02832]
[1766267239105,0.02668059,88325.0,88312.0,0.02832]
[1766267239301,0.03800769,88324.0,88313.0,0.02832]
[1766267239497,0.02668059,88323.0,88313.0,0.02832]
[1766267239699,0.02668059,88322.0,88313.0,0.02832]
[1766267239908,0.02668059,88321.0,88313.0,0.02832]
[1766267240106,0.02668059,88320.0,88313.0,0.02832]
[1766267240307,0.0113271,88324.0,88313.0,0.02832]
[1766267240502,0.02668036,88323.0,88313.0,0.02832]
[1766267240702,0.02668036,88322.0,88313.0,0.02832]
[1766267240902,0.02668036,88321.0,88313.0,0.02832]
[1766267241105,0.02668036,88320.0,88313.0,0.02832]
[1766267241304,0.0113271,88324.0,88313.0,0.02832]
[1766267241505,0.02668056,88323.0,88313.0,0.02832]
[1766267241706,0.02668056,88322.0,88313.0,0.02832]
[1766267242011,0.02668056,88321.0,88313.0,0.02832]
[1766267242202,0.02668056,88320.0,88313.0,0.02832]
[1766267242402,0.02668056,88319.0,88313.0,0.02832]
[1766267242608,0.0113271,88324.0,88313.0,0.02832]
[1766267242813,0.0113273,88322.0,88313.0,0.02832]
[1766267243112,0.02668053,88321.0,88313.0,0.02832]
[1766267243304,0.02668053,88320.0,88313.0,0.02832]
[1766267243506,0.02668053,88319.0,88313.0,0.02832]
[1766267243705,0.0113273,88322.0,88313.0,0.02832]
[1766267243910,0.02662914,88321.0,88313.0,0.02832]
[1766267244105,0.02662914,88320.0,88313.0,0.02832]
[1766267244309,0.02662914,88319.0,88313.0,0.02832]
[1766267244507,0.0113273,88322.0,88313.0,0.02832]
[1766267244708,0.02662904,88321.0,88313.0,0.02832]
[1766267244916,0.02662904,88320.0,88313.0,0.02832]
[1766267245116,0.0113273,88322.0,88313.0,0.02832]
[1766267245117,0.02662904,88319.0,88313.0,0.02832]
[1766267245308,0.0113273,88322.0,88313.0,0.02832]
[1766267245503,0.02662907,88321.0,88314.0,0.02832]
[1766267245807,0.02662907,88320.0,88314.0,0.02832]
[1766267246008,0.02662907,88319.0,88314.0,0.02832]
[1766267246208,0.0113273,88322.0,88314.0,0.02832]
[1766267246408,0.02662923,88321.0,88314.0,0.02832]
[1766267246617,0.02662923,88320.0,88314.0,0.02832]
[1766267246817,0.02662923,88319.0,88314.0,0.02832]
[1766267247018,0.0113273,88322.0,88314.0,0.02832]
[1766267247218,0.02662915,88321.0,88314.0,0.02832]
[1766267247419,0.02662915,88320.0,88314.0,0.02832]
[1766267247621,0.02662915,88319.0,88315.0,0.02832]
[1766267247820,0.0113273,88322.0,88315.0,0.02832]
[1766267248119,0.02662918,88321.0,88315.0,0.02832]
[1766267248321,0.02662918,88320.0,88315.0,0.02832]
[1766267248520,0.0113273,88322.0,88315.0,0.02832]
[1766267248721,0.02657859,88321.0,88315.0,0.02832]
[1766267248922,0.02657859,88320.0,88315.0,0.02832]
[1766267249118,0.0113273,88322.0,88315.0,0.02832]
[1766267249321,0.02657887,88321.0,88315.0,0.02832]
[1766267249519,0.02657887,88320.0,88315.0,0.02832]
[1766267249818,0.0265791,88319.0,88316.0,0.02832]
[1766267250023,0.0113273,88322.0,88316.0,0.02832]
[1766267250227,0.02657911,88321.0,88316.0,0.02832]
[1766267250526,0.02657911,88320.0,88316.0,0.02832]
[1766267250725,0.02657911,88319.0,88311.0,0.00016982]
[1766267250925,0.0113273,88322.0,88312.0,0.02832]
[1766267251123,0.02644763,88321.0,88312.0,0.02832]
[1766267251319,0.02644763,88320.0,88312.0,0.02832]
[1766267251615,0.0113273,88322.0,88312.0,0.02832]
[1766267251916,0.0264478,88321.0,88312.0,0.02832]
[1766267252110,0.0264478,88320.0,88312.0,0.02832]
[1766267252323,0.0113273,88322.0,88313.0,0.02832]
[1766267252519,0.02644795,88321.0,88313.0,0.02832]
[1766267252718,0.02644795,88320.0,88313.0,0.02832]
[1766267252920,0.02644798,88319.0,88313.0,0.02832]
[1766267253124,0.0113273,88322.0,88313.0,0.02832]
[1766267253324,0.02639687,88321.0,88313.0,0.02832]
[1766267253616,0.02639684,88320.0,88313.0,0.02832]
[1766267253820,0.02639684,88319.0,88313.0,0.02832]
[1766267254023,0.0113273,88322.0,88314.0,0.02832]
[1766267254225,0.02639681,88321.0,88314.0,0.02832]
[1766267254421,0.02639681,88320.0,88314.0,0.02832]
[1766267254621,0.02639681,88319.0,88314.0,0.02832]
[1766267254918,0.0113273,88322.0,88314.0,0.02832]
[1766267255120,0.02639816,88321.0,88314.0,0.02832]
[1766267255323,0.02639816,88320.0,88314.0,0.02832]
[1766267255523,0.02639816,88319.0,88314.0,0.02832]
[1766267255824,0.0113273,88322.0,88314.0,0.02832]
[1766267256026,0.02639882,88321.0,88314.0,0.02832]
[1766267256221,0.0113273,88322.0,88314.0,0.02832]
[1766267256222,0.02639882,88320.0,88314.0,0.02832]
[1766267256423,0.02639882,88319.0,88314.0,0.02832]
[1766267256624,0.0113273,88322.0,88314.0,0.02832]
[1766267256824,0.0264001,88321.0,88315.0,0.02832]
[1766267257128,0.0264001,88320.0,88315.0,0.02832]
[1766267257327,0.0264001,88319.0,88315.0,0.02832]
[1766267257524,0.0113273,88322.0,88315.0,0.02832]
[1766267257715,0.02640075,88321.0,88315.0,0.02832]
[1766267257915,0.02640075,88320.0,88315.0,0.02832]
[1766267258121,0.02640075,88319.0,88315.0,0.02832]
[1766267258318,0.0113273,88322.0,88315.0,0.02832]
[1766267258521,0.02640162,88321.0,88315.0,0.02832]
[1766267258733,0.02640162,88320.0,88315.0,0.02832]
[1766267258930,0.02640162,88319.0,88315.0,0.02832]
[1766267259135,0.0113273,88322.0,88316.0,0.02832]
[1766267259343,0.02640167,88321.0,88316.0,0.02832]
[1766267259543,0.02640167,88320.0,88316.0,0.02832]
[1766267259844,0.02640167,88319.0,88316.0,0.02832]
[1766267260042,0.0113273,88322.0,88316.0,0.02832]
[1766267260342,0.02640133,88321.0,88316.0,0.02832]
[1766267260542,0.02640133,88320.0,88316.0,0.02832]
[1766267260742,0.02640133,88319.0,88316.0,0.02832]
[1766267260942,0.0113273,88322.0,88316.0,0.02832]
[1766267261144,0.02640134,88321.0,88316.0,0.02832]
[1766267261344,0.02640134,88320.0,88316.0,0.02832]
[1766267261544,0.02640134,88319.0,88316.0,0.02832]
[1766267261736,0.0113273,88322.0,88311.0,0.00016982]
[1766267261938,0.02640129,88321.0,88312.0,0.02832]
[1766267262236,0.02640129,88320.0,88312.0,0.02832]
[1766267262435,0.02640129,88319.0,88312.0,0.02832]
[1766267262637,0.0113273,88322.0,88312.0,0.02832]
[1766267262850,0.02640145,88321.0,88312.0,0.02832]
[1766267263147,0.02640145,88320.0,88312.0,0.02832]
[1766267263344,0.02640145,88319.0,88312.0,0.02832]
[1766267263545,0.0113273,88322.0,88312.0,0.02832]
[1766267263742,0.02640148,88321.0,88312.0,0.02832]
[1766267263941,0.02640148,88320.0,88312.0,0.02832]
[1766267264141,0.02640148,88319.0,88312.0,0.02832]
[1766267264349,0.0113273,88322.0,88312.0,0.02832]
[1766267264543,0.0264065,88321.0,88312.0,0.02832]
[1766267264745,0.0264065,88320.0,88312.0,0.02832]
[1766267264947,0.0264065,88319.0,88312.0,0.02832]
[1766267265146,0.0113273,88322.0,88312.0,0.02832]
[1766267265147,0.02640772,88318.0,88312.0,0.02832]
[1766267265347,0.0113273,88322.0,88312.0,0.02832]
[1766267265549,0.02640762,88321.0,88312.0,0.02832]
[1766267265750,0.02640762,88320.0,88312.0,0.02832]
[1766267266052,0.02640762,88319.0,88313.0,0.02832]
[1766267266350,0.02640762,88318.0,88313.0,0.02832]
[1766267266547,0.0113273,88322.0,88311.0,0.00016982]
[1766267266745,0.02640744,88321.0,88314.0,0.02832]
[1766267266946,0.02640744,88320.0,88314.0,0.02832]
[1766267267146,0.02640744,88319.0,88315.0,0.02832]
[1766267267346,0.02640744,88318.0,88315.0,0.02832]
[1766267267646,0.0113273,88322.0,88315.0,0.02832]
[1766267267851,0.02640748,88321.0,88315.0,0.02832]
[1766267268048,0.02640748,88320.0,88315.0,0.02832]
[1766267268249,0.02640748,88319.0,88315.0,0.02832]
[1766267268449,0.02640748,88318.0,88315.0,0.02832]
[1766267268649,0.0113273,88322.0,88315.0,0.02832]
[1766267268850,0.02640747,88321.0,88315.0,0.02832]
[1766267269053,0.02640747,88320.0,88315.0,0.02832]
[1766267269255,0.02640747,88319.0,88315.0,0.02832]
[1766267269449,0.02640747,88318.0,88315.0,0.02832]
[1766267269743,0.0113273,88322.0,88315.0,0.02832]
[1766267269946,0.02640743,88321.0,88315.0,0.02832]
[1766267270150,0.02640743,88320.0,88315.0,0.02832]
[1766267270349,0.02640743,88319.0,88315.0,0.02832]
[1766267270559,0.02640743,88318.0,88315.0,0.02832]
[1766267270758,0.0113273,88322.0,88315.0,0.02832]
[1766267270960,0.02640754,88321.0,88315.0,0.02832]
[1766267271155,0.02640754,88320.0,88315.0,0.02832]
[1766267271355,0.02640754,88319.0,88315.0,0.02832]
[1766267271555,0.02640754,88318.0,88315.0,0.02832]
[1766267271761,0.0113273,88322.0,88315.0,0.02832]
[1766267272058,0.02640747,88321.0,88315.0,0.02832]
[1766267272258,0.02640747,88320.0,88315.0,0.02832]
[1766267272458,0.02640747,88319.0,88315.0,0.02832]
[1766267272662,0.02640747,88318.0,88315.0,0.02832]
[1766267272861,0.0113273,88322.0,88315.0,0.02832]
[1766267273057,0.02640748,88321.0,88315.0,0.02832]
[1766267273256,0.02640748,88320.0,88311.0,0.00016982]
[1766267273458,0.02640748,88319.0,88312.0,0.02832]
[1766267273759,0.02640748,88318.0,88312.0,0.02832]
[1766267273960,0.02640748,88317.0,88311.0,0.00016982]
[1766267274160,0.0113273,88322.0,88312.0,0.02832]
[1766267274357,0.02640744,88321.0,88311.0,0.00016982]
[1766267274562,0.0113273,88322.0,88311.0,0.00016982]
[1766267274563,0.02640744,88320.0,88313.0,0.02832]
[1766267274761,0.02640744,88319.0,88313.0,0.02832]
[1766267274962,0.02640744,88318.0,88313.0,0.02832]
[1766267275165,0.0113273,88322.0,88313.0,0.02832]
[1766267275364,0.02640716,88321.0,88313.0,0.02832]
[1766267275564,0.02640716,88320.0,88313.0,0.02832]
[1766267275768,0.02640716,88319.0,88313.0,0.02832]
[1766267275956,0.0113273,88322.0,88313.0,0.02832]
[1766267276265,0.02640691,88321.0,88313.0,0.02832]
[1766267276467,0.02640691,88320.0,88313.0,0.02832]
[1766267276664,0.02640691,88319.0,88313.0,0.02832]
[1766267276864,0.0113273,88322.0,88311.0,0.00016982]
[1766267277166,0.02640678,88321.0,88312.0,0.02832]
[1766267277374,0.02640678,88320.0,88312.0,0.02832]
[1766267277563,0.02640678,88319.0,88312.0,0.02832]
[1766267277765,0.011327,88324.0,88312.0,0.02832]
[1766267277962,0.02640701,88323.0,88312.0,0.02832]
[1766267278163,0.02640701,88322.0,88312.0,0.02832]
[1766267278364,0.02640701,88321.0,88312.0,0.02832]
[1766267278563,0.02640701,88320.0,88312.0,0.02832]
[1766267278767,0.02640701,88319.0,88312.0,0.02832]
[1766267278968,0.011327,88324.0,88312.0,0.02832]
[1766267279161,0.026407,88323.0,88312.0,0.02832]
[1766267279360,0.011327,88324.0,88312.0,0.02832]
[1766267279361,0.026407,88322.0,88312.0,0.02832]
[1766267279562,0.026407,88321.0,88312.0,0.02832]
[1766267279763,0.026407,88320.0,88312.0,0.02832]
[1766267280066,0.026407,88319.0,88312.0,0.02832]
[1766267280267,0.011327,88324.0,88312.0,0.02832]
[1766267280470,0.02640712,88323.0,88312.0,0.02832]
[1766267280768,0.02640712,88322.0,88312.0,0.02832]
[1766267280968,0.02640712,88321.0,88312.0,0.02832]
[1766267281170,0.02640712,88320.0,88312.0,0.02832]
[1766267281371,0.02640712,88319.0,88313.0,0.02832]
[1766267281571,0.011327,88324.0,88313.0,0.02832]
[1766267281772,0.02633332,88323.0,88313.0,0.02832]
[1766267282069,0.02633332,88322.0,88313.0,0.02832]
[1766267282269,0.02633332,88321.0,88313.0,0.02832]
[1766267282469,0.02633332,88320.0,88313.0,0.02832]
[1766267282770,0.02633332,88319.0,88313.0,0.02832]
[1766267282958,0.011327,88324.0,88313.0,0.02832]
[1766267283163,0.02633318,88323.0,88313.0,0.02832]
[1766267283368,0.02633318,88322.0,88313.0,0.02832]
[1766267283568,0.02633318,88321.0,88313.0,0.02832]
[1766267283867,0.02633318,88320.0,88313.0,0.02832]
[1766267284068,0.02633318,88319.0,88313.0,0.02832]
[1766267284268,0.011327,88324.0,88313.0,0.02832]
[1766267284568,0.026333,88323.0,88313.0,0.02832]
[1766267284768,0.026333,88322.0,88313.0,0.02832]
[1766267284966,0.026333,88321.0,88313.0,0.02832]
[1766267285272,0.026333,88320.0,88313.0,0.02832]
[1766267285468,0.0376607,88319.0,88311.0,0.00016982]
[1766267285668,0.22812842,88305.0,88265.0,0.0815409]
[1766267285859,0.0113329,88279.0,88247.0,0.0113368]
[1766267286057,0.22812842,88270.0,88247.0,0.0113368]
[1766267286262,0.0113329,88279.0,88246.0,0.011337]
[1766267286472,0.02816682,88278.0,88246.0,0.011337]
[1766267286666,0.0113329,88279.0,88254.0,0.00016993]
[1766267286864,0.02829417,88278.0,88255.0,0.01592]
[1766267287067,0.00012731,88278.0,88255.0,0.01592]
[1766267287769,0.00012731,88278.0,88260.0,0.22812842]
[1766267287964,0.22812842,88300.0,88261.0,0.02836]
[1766267288160,0.0113308,88295.0,88261.0,0.02836]
[1766267288374,0.0113312,88292.0,88261.0,0.02836]
[1766267288674,0.22812842,88290.0,88261.0,0.02836]
[1766267288867,0.00011336,88284.0,88267.0,0.00016993]
[1766267289067,0.00011336,88284.0,88268.0,0.02836]
[1766267303181,0.0113323,88283.0,88268.0,0.02836]
[1766267312503,0.0113326,88281.0,88268.0,0.02836]
[1766267313208,0.02874728,88280.0,88268.0,0.02836]
[1766267313409,0.02874728,88279.0,88268.0,0.02836]